fUST/lending_fUST_20241208
["ID","MTS","AMOUNT","RATE_DAILY","PERIOD"]
[344622607,1733628632031,-181.0,0.00024164,2]
[344622608,1733628632045,-420.0,0.00024199,2]
[344622609,1733628632059,-180.0,0.00025775,2]
[344622610,1733628632081,-359.6699186,0.00025798,2]
[344622611,1733628632092,-587.0,0.00025977,2]
[344622612,1733628632101,-762.36764662,0.00026,2]
[344622613,1733628632111,-400.0,0.00026594,2]
[344622614,1733628632121,-587.0,0.00026619,2]
[344622615,1733628632130,-53488.40380299,0.00027,2]
[344622616,1733628632139,-8173.12096346,0.00027,2]
[344622812,1733628640017,-416.21697125,0.00026999,2]
[344623133,1733628643192,-163.70152581,0.00026519,2]
[344623135,1733628643201,-83.78302875,0.00026999,2]
[344623137,1733628643211,-500.0,0.00026999,2]
[344623139,1733628643220,-500.0,0.00026999,2]
[344623141,1733628643230,-500.0,0.00026999,2]
[344623143,1733628643239,-500.0,0.00026999,2]
[344623145,1733628643248,-500.0,0.00026999,2]
[344623147,1733628643257,-500.0,0.00026999,2]
[344623149,1733628643266,-165.74849732,0.00026999,2]
[344623150,1733628643275,-500.0,0.00026999,2]
[344623152,1733628643284,-500.0,0.00026999,2]
[344623154,1733628643293,-158.72833934,0.00026999,2]
[344623156,1733628643302,-620.39363949,0.00026999,2]
[344623158,1733628643311,-2734.99716135,0.00027,2]
[344623161,1733628643328,-156.09125704,0.00027254,2]
[344623164,1733628643340,-180.0,0.00027386,2]
[344623166,1733628643350,-4470.09450255,0.000275,2]
[344623168,1733628643360,-400.0,0.00027578,2]
[344623170,1733628643371,-180.0,0.00027616,2]
[344623172,1733628643382,-552.43212181,0.000277,2]
[344623174,1733628643392,-500.0,0.00027799,5]
[344623176,1733628643401,-16853.77179887,0.000278,2]
[344623178,1733628643415,-3477.85641614,0.000278,2]
[344623429,1733628771138,164.3842774,0.00013973,2]
[344623431,1733629394778,165.613147,0.00013973,2]
[344623469,1733629832394,-260.51830511,0.00023973,2]
[344623471,1733629832404,-97.76158445,0.00025835,2]
[344623683,1733629838229,-202.23841555,0.00025835,2]
[344623685,1733629838239,-300.0,0.00025835,2]
[344623686,1733629838248,-10669.0158189,0.00025836,2]
[344623687,1733629838257,-168.8559612,0.00025855,2]
[344623688,1733629838266,-733.5674027,0.00026147,2]
[344623689,1733629838275,-400.0,0.00026301,2]
[344623690,1733629838285,-307.02423372,0.00027275,2]
[344623691,1733629838297,-92.97576628,0.00027275,2]
[344623692,1733629838307,-500.0,0.00027397,5]
[344623693,1733629838316,-163.40007547,0.000277,2]
[344623694,1733629838325,-36497.42097648,0.000278,2]
[344623695,1733629838401,-1345.31957065,0.000278,2]
[344624034,1733629843594,-83481.43768615,0.000278,2]
[344624043,1733630066105,164.384279,0.00013973,2]
[344624045,1733630860640,165.497088,0.00013973,2]
[344624046,1733630916467,1000.0,0.0002,2]
[344624067,1733631032297,-386.762629,0.0002442,2]
[344624069,1733631032307,-291.1963756,0.00024474,2]
[344624071,1733631032316,-150.0,0.000245,2]
[344624073,1733631032326,-2209.72848712,0.000254,2]
[344624076,1733631032335,-300.0,0.00025498,2]
[344624079,1733631032345,-300.0,0.00025498,2]
[344624081,1733631032355,-202.9750314,0.00025499,2]
[344624083,1733631032369,-500.0,0.00025499,2]
[344624085,1733631032378,-178.00305582,0.00025499,2]
[344624087,1733631032388,-216.90826293,0.00025499,2]
[344624089,1733631032398,-171.60374684,0.00025499,2]
[344624091,1733631032410,-291.15484883,0.00025499,2]
[344624093,1733631032419,-184.30314882,0.00025499,2]
[344624095,1733631032428,-507.23918636,0.00025499,2]
[344624097,1733631032438,-1743.71852977,0.000255,2]
[344624099,1733631032450,-826.39195476,0.000255,2]
[344624222,1733631038177,-1040.24491671,0.000255,2]
[344624742,1733631044240,-37584.18597492,0.000255,2]
[344624743,1733631044250,-657884.36,0.000255,5]
[344624744,1733631044263,-2250.19,0.000255,14]
[344624745,1733631044273,-170.488455,0.00025921,2]
[344624746,1733631044283,-400.0,0.00026301,2]
[344624747,1733631044293,-159.062,0.0002641,2]
[344624748,1733631044302,-203.0997129,0.00026514,2]
[344624749,1733631044312,-501.45820238,0.00026514,2]
[344624750,1733631044322,-500.0,0.0002665,2]
[344624751,1733631044331,-250.16897598,0.0002665,2]
[344624752,1733631044340,-513.59335454,0.0002665,2]
[344624753,1733631044350,-517.65782461,0.0002688,2]
[344624754,1733631044360,-155.05456285,0.00027185,2]
[344624755,1733631044371,-502.69613502,0.00027198,2]
[344624756,1733631044380,-400.0,0.00027275,2]
[344624757,1733631044390,-627.5,0.00027345,15]
[344624758,1733631044399,-500.0,0.00027397,5]
[344624759,1733631044409,-15078.52,0.000274,30]
[344624760,1733631044419,-420.0,0.00027609,2]
[344624761,1733631044429,-324161.06607342,0.000278,2]
[344624762,1733631044438,-5000.0,0.000278,2]
[344624763,1733631044448,-5000.0,0.000278,2]
[344624764,1733631044458,-5000.0,0.000278,2]
[344624765,1733631044467,-5000.0,0.000278,2]
[344624766,1733631044477,-5000.0,0.000278,2]
[344624767,1733631044486,-4970.01905043,0.000278,2]
[344624768,1733631044495,-151.0,0.000278,7]
[344624769,1733631044507,-153.616652,0.000278,7]
[344624770,1733631044517,-280.943521,0.000278,7]
[344624771,1733631044526,-151.0,0.000278,7]
[344624772,1733631044536,-151.0,0.000278,7]
[344624773,1733631044545,-151.0,0.000278,7]
[344624774,1733631044554,-151.0,0.000278,7]
[344624775,1733631044563,-151.0,0.000278,7]
[344624776,1733631044573,-151.0,0.000278,7]
[344624777,1733631044582,-172.816027,0.000278,7]
[344624778,1733631044591,-165.995762,0.000278,7]
[344624779,1733631044600,-151.0,0.000278,7]
[344624780,1733631044609,-151.0,0.000278,7]
[344624781,1733631044619,-151.0,0.000278,7]
[344624782,1733631044628,-151.0,0.000278,7]
[344624783,1733631044638,-151.0,0.000278,7]
[344624784,1733631044648,-151.0,0.000278,7]
[344624785,1733631044658,-2634.79139655,0.00028,7]
[344624786,1733631044667,-420.0,0.00028048,2]
[344624787,1733631044677,-343.28359308,0.000282,2]
[344624788,1733631044687,-400.0,0.00028248,2]
[344624789,1733631044696,-155.00272814,0.00028544,2]
[344624790,1733631044706,-500.0,0.00028767,6]
[344624791,1733631044716,-400.0,0.00029221,2]
[344624792,1733631044726,-587.0,0.00029894,2]
[344624793,1733631044736,-87039.43011589,0.0003,120]
[344624794,1733631044747,-257.82217737,0.0003,2]
[344624795,1733631044757,-5989.07058361,0.0003,2]
[344624796,1733631044767,-191.3535,0.0003,2]
[344624797,1733631044776,-151.0,0.0003,7]
[344624798,1733631044786,-151.0,0.0003,7]
[344624799,1733631044796,-151.0,0.0003,7]
[344624800,1733631044806,-250.0,0.0003,2]
[344624801,1733631044816,-151.0,0.0003,7]
[344624802,1733631044826,-151.0,0.0003,7]
[344624803,1733631044837,-151.0,0.0003,7]
[344624804,1733631044846,-1610.4,0.000301,2]
[344624805,1733631044855,-500.0,0.00030136,5]
[344624806,1733631044865,-500.0,0.00030136,5]
[344624807,1733631044875,-500.0,0.00030136,5]
[344624808,1733631044885,-502.03303853,0.00030136,5]
[344624809,1733631044895,-500.0,0.00030136,5]
[344624810,1733631044904,-500.0,0.00030136,5]
[344624811,1733631044914,-500.0,0.00030136,5]
[344624812,1733631044924,-500.0,0.00030136,5]
[344624813,1733631044934,-500.0,0.00030136,5]
[344624814,1733631044944,-500.0,0.00030136,5]
[344624815,1733631044954,-500.0,0.00030136,5]
[344624816,1733631044964,-500.0,0.00030136,5]
[344624817,1733631044974,-500.0,0.00030136,5]
[344624818,1733631044984,-618.78893,0.00030136,5]
[344624819,1733631044994,-500.0,0.00030136,5]
[344624820,1733631045004,-264.72770942,0.00030136,5]
[344624821,1733631045013,-500.0,0.00030136,5]
[344624822,1733631045023,-500.0,0.00030136,5]
[344624823,1733631045033,-500.0,0.00030136,5]
[344624824,1733631045043,-500.0,0.00030136,5]
[344624825,1733631045052,-500.0,0.00030136,5]
[344624826,1733631045062,-500.0,0.00030136,5]
[344624827,1733631045071,-500.0,0.00030136,5]
[344624828,1733631045081,-500.0,0.00030136,5]
[344624829,1733631045090,-500.0,0.00030136,5]
[344624830,1733631045099,-500.0,0.00030136,5]
[344624831,1733631045109,-500.0,0.00030136,5]
[344624832,1733631045118,-500.0,0.00030136,5]
[344624833,1733631045128,-649.41325098,0.00030136,5]
[344624834,1733631045137,-500.0,0.00030136,5]
[344624835,1733631045147,-500.0,0.00030136,5]
[344624836,1733631045156,-500.0,0.00030136,5]
[344624837,1733631045166,-500.0,0.00030136,5]
[344624838,1733631045175,-577.0603785,0.00030136,5]
[344624839,1733631045185,-151.0,0.00030136,7]
[344624840,1733631045195,-151.0,0.00030136,7]
[344624841,1733631045204,-151.0,0.00030136,7]
[344624842,1733631045214,-153.570134,0.00030136,7]
[344624843,1733631045223,-500.0,0.00030136,5]
[344624844,1733631045232,-495.36189107,0.00030136,5]
[344624845,1733631045242,-181.003797,0.00030136,7]
[344624846,1733631045253,-500.0,0.00030136,5]
[344624847,1733631045262,-500.0,0.00030136,5]
[344624848,1733631045272,-500.0,0.00030136,5]
[344624849,1733631045282,-446.71171871,0.00030136,5]
[344624850,1733631045295,-500.0,0.00030136,5]
[344624851,1733631045304,-500.0,0.00030136,5]
[344624852,1733631045317,-500.0,0.00030136,5]
[344624853,1733631045327,-500.0,0.00030136,5]
[344624854,1733631045336,-500.0,0.00030136,5]
[344624855,1733631045346,-500.0,0.00030136,5]
[344624856,1733631045355,-500.0,0.00030136,5]
[344624857,1733631045368,-251.00219314,0.00030136,5]
[344624858,1733631045378,-503.76167049,0.00030136,5]
[344624859,1733631045387,-506.65833176,0.00030136,5]
[344624860,1733631045396,-501.68536318,0.00030136,5]
[344624861,1733631045406,-513.45395919,0.00030136,5]
[344624862,1733631045416,-503.26893962,0.00030136,5]
[344624863,1733631045425,-508.26884657,0.00030136,5]
[344624864,1733631045435,-516.47914558,0.00030136,5]
[344624865,1733631045445,-513.81700055,0.00030136,5]
[344624866,1733631045455,-550.28408903,0.00030136,5]
[344624867,1733631045464,-503.01420277,0.00030136,5]
[344624868,1733631045474,-151.0,0.00030136,7]
[344624869,1733631045483,-151.0,0.00030136,7]
[344624870,1733631045492,-508.46408164,0.00030136,5]
[344624871,1733631045503,-260.20551906,0.00030136,5]
[344624872,1733631045513,-171.917209,0.00030136,7]
[344624873,1733631045522,-500.0,0.00030136,5]
[344624874,1733631045532,-500.0,0.00030136,5]
[344624875,1733631045541,-500.0,0.00030136,5]
[344624876,1733631045550,-164.91,0.00030136,5]
[344624877,1733631045559,-500.0,0.00030136,5]
[344624878,1733631045568,-500.0,0.00030136,5]
[344624879,1733631045577,-500.0,0.00030136,5]
[344624880,1733631045589,-514.54477134,0.00030136,5]
[344624882,1733631045598,-536.97640377,0.00030136,5]
[344624883,1733631045608,-151.0,0.00030136,7]
[344624884,1733631045617,-151.0,0.00030136,7]
[344624885,1733631045626,-500.0,0.00030136,5]
[344624886,1733631045636,-500.0,0.00030136,5]
[344624887,1733631045645,-500.0,0.00030136,5]
[344624888,1733631045654,-500.0,0.00030136,5]
[344624889,1733631045664,-500.0,0.00030136,5]
[344624890,1733631045673,-500.0,0.00030136,5]
[344624891,1733631045683,-500.0,0.00030136,5]
[344624892,1733631045692,-172.781,0.00030136,5]
[344624893,1733631045702,-500.0,0.00030136,7]
[344624894,1733631045711,-357.52416591,0.00030136,2]
[344624895,1733631045720,-502.69100571,0.00030136,5]
[344624896,1733631045729,-500.0,0.00030136,5]
[344624897,1733631045738,-168.47968111,0.00030137,2]
[344624898,1733631045747,-400.0,0.00030194,2]
[344624899,1733631045758,-276.594082,0.00030194,7]
[344624900,1733631045767,-2250.19,0.000302,30]
[344624901,1733631045776,-151.0,0.000302,7]
[344624902,1733631045786,-260.94755409,0.00030473,2]
[344624903,1733631045795,-202.66750225,0.00030473,5]
[344624904,1733631045804,-506.31967847,0.00030473,5]
[344624905,1733631045814,-502.52184792,0.00030473,5]
[344624906,1733631045823,-505.04477156,0.00030473,5]
[344624907,1733631045833,-282.43713699,0.00030473,5]
[344624908,1733631045842,-151.0,0.00030498,7]
[344624909,1733631045851,-151.0,0.00030498,7]
[344624910,1733631045860,-151.0,0.00030498,7]
[344624911,1733631045870,-151.0,0.00030498,7]
[344624912,1733631045879,-151.0,0.00030498,7]
[344624913,1733631045888,-164.052023,0.00030498,7]
[344624914,1733631045898,-9394757.52455005,0.00030498,10]
[344624915,1733631045907,-712779.47371827,0.00030498,10]
[344624916,1733631045916,-2523.81019518,0.00030498,2]
[344624917,1733631045926,-337467.66901579,0.00030498,10]
[344624918,1733631045935,-581372.74915058,0.00030498,10]
[344624919,1733631045944,-13726.51721072,0.00030498,2]
[344624920,1733631045954,-2146513.63238642,0.00030498,10]
[344624921,1733631045963,-406625.67472672,0.00030498,10]
[344624922,1733631045973,-21955.06141114,0.00030498,30]
[344624923,1733631045982,-219.0,0.00030498,15]
[344624924,1733631045992,-875527.45134021,0.00030498,10]
[344624925,1733631046005,-438943.00705883,0.00030498,10]
[344624926,1733631046014,-875461.08683228,0.00030498,10]
[344624927,1733631046023,-153.13620929,0.00030498,120]
[344624928,1733631046033,-359692.63162136,0.00030498,10]
[344624929,1733631046042,-1078208.90987729,0.00030498,10]
[344624930,1733631046052,-2607286.41120776,0.00030498,10]
[344624931,1733631046062,-2426522.68693688,0.00030498,10]
[344624932,1733631046071,-3265681.39356978,0.00030498,10]
[344624933,1733631046081,-259.37596519,0.00030498,120]
[344624934,1733631046090,-1060.92104786,0.00030498,10]
[344624935,1733631046100,-519.64881398,0.00030498,2]
[344624936,1733631046110,-6242.4045396,0.00030498,7]
[344624937,1733631046120,-664.16883417,0.00030498,2]
[344624938,1733631046129,-2985.9934615,0.00030498,7]
[344624939,1733631046139,-1576.37677518,0.00030498,120]
[344624940,1733631046148,-1439.6597791,0.00030498,30]
[344624941,1733631046158,-176.81905463,0.00030498,2]
[344624942,1733631046167,-486.51909326,0.00030498,3]
[344624943,1733631046177,-4934.52537821,0.00030498,2]
[344624944,1733631046186,-68653.98688428,0.00030498,7]
[344624945,1733631046195,-1489.02958313,0.00030498,2]
[344624946,1733631046205,-579.3917087,0.00030498,2]
[344624947,1733631046215,-1000.18778652,0.00030498,2]
[344624948,1733631046225,-611.18174526,0.00030498,120]
[344624949,1733631046302,-1479.7919668,0.00030498,30]
[344624950,1733631046321,-3757961.71189876,0.00030498,10]
[344624951,1733631046331,-6983902.52823361,0.00030498,10]
[344624952,1733631046341,-7044067.7838372,0.00030498,10]
[344624963,1733631680887,165.497088,0.00013973,2]
[344624965,1733632108113,155.39494408,0.000176,2]
[344625026,1733632232437,-159.17304064,0.0002201,16]
[344625028,1733632232447,-452.55302467,0.00025,7]
[344625031,1733632232458,-9137.25549003,0.00025,7]
[344625033,1733632232468,-300.0,0.00025998,2]
[344625035,1733632232477,-300.0,0.00025998,2]
[344625037,1733632232486,-1662.44688855,0.00026,30]
[344625039,1733632232495,-479.82579304,0.00028,7]
[344625041,1733632232505,-420.0,0.00028136,2]
[344625043,1733632232515,-184.0518303,0.00028299,2]
[344625045,1733632232524,-288.060607,0.00028418,2]
[344625047,1733632232533,-158.83801072,0.00028528,2]
[344625049,1733632232542,-219.0,0.00028598,2]
[344625051,1733632232552,-1443.03673688,0.00028598,2]
[344625053,1733632232561,-159.136,0.0002897,2]
[344625055,1733632232570,-9498.17222768,0.00029659,2]
[344625057,1733632232579,-158.83801072,0.000297,2]
[344625059,1733632232588,-1013.2,0.000298,3]
[344625061,1733632232597,-265.38229826,0.000299,2]
[344625063,1733632232606,-9498.17222768,0.00029918,2]
[344625065,1733632232615,-265.38229824,0.00029969,2]
[344625068,1733632232624,-7992.04964251,0.0003,10]
[344625070,1733632232633,-229.0,0.0003,2]
[344625072,1733632232642,-265.38229824,0.00030038,2]
[344625074,1733632232652,-265.38229824,0.00030107,2]
[344625076,1733632232661,-502.3088289,0.00030136,5]
[344625078,1733632232670,-505.55443123,0.00030136,5]
[344625080,1733632232679,-509.80594751,0.00030136,5]
[344625082,1733632232690,-503.12045198,0.00030136,5]
[344625084,1733632232701,-506.46906874,0.00030136,5]
[344625086,1733632232710,-502.64927404,0.00030136,5]
[344625088,1733632232719,-503.77346417,0.00030136,5]
[344625090,1733632232728,-505.97281733,0.00030136,5]
[344625092,1733632232738,-507.15664266,0.00030136,5]
[344625094,1733632232748,-201.85482553,0.00030136,5]
[344625096,1733632232758,-508.19674582,0.00030136,5]
[344625098,1733632232771,-587.45215352,0.00030136,5]
[344625100,1733632232780,-504.08375967,0.00030136,5]
[344625102,1733632232789,-503.43918613,0.00030136,5]
[344625103,1733632232799,-505.42050333,0.00030136,5]
[344625104,1733632232807,-503.10534937,0.00030136,5]
[344625105,1733632232816,-504.75297608,0.00030136,5]
[344625106,1733632232826,-501.87147777,0.00030136,5]
[344625107,1733632232835,-500.0,0.00030136,5]
[344625108,1733632232843,-500.0,0.00030136,5]
[344625109,1733632232853,-503.36465104,0.00030136,5]
[344625110,1733632232861,-503.378379,0.00030136,5]
[344625111,1733632232870,-504.56603057,0.00030136,5]
[344625112,1733632232880,-505.14400431,0.00030136,5]
[344625113,1733632232889,-510.0588267,0.00030136,5]
[344625114,1733632232898,-504.23899909,0.00030136,5]
[344625115,1733632232907,-527.32195729,0.00030136,5]
[344625116,1733632232916,-500.0,0.00030136,5]
[344625117,1733632232925,-500.0,0.00030136,5]
[344625118,1733632232934,-502.46782104,0.00030136,5]
[344625119,1733632232943,-500.0,0.00030136,5]
[344625121,1733632232952,-496.25801125,0.00030136,5]
[344625122,1733632232962,-500.0,0.00030136,5]
[344625124,1733632232972,-423.65913742,0.00030136,5]
[344625126,1733632232981,-500.0,0.00030136,5]
[344625128,1733632232990,-189.46813086,0.00030136,5]
[344625130,1733632233001,-500.0,0.00030136,5]
[344625132,1733632233009,-500.0,0.00030136,5]
[344625134,1733632233019,-500.0,0.00030136,5]
[344625136,1733632233028,-508.54777083,0.00030136,5]
[344625138,1733632233037,-503.37993716,0.00030136,5]
[344625140,1733632233046,-500.0,0.00030136,5]
[344625142,1733632233055,-515.69374969,0.00030136,5]
[344625144,1733632233064,-506.50429644,0.00030136,5]
[344625146,1733632233074,-500.0,0.00030136,5]
[344625148,1733632233083,-500.0,0.00030136,5]
[344625150,1733632233092,-500.0,0.00030136,5]
[344625152,1733632233101,-500.0,0.00030136,5]
[344625154,1733632233111,-506.89289235,0.00030136,5]
[344625156,1733632233120,-409.9678168,0.00030136,5]
[344625158,1733632233130,-507.57706604,0.00030136,5]
[344625160,1733632233139,-503.55814927,0.00030136,5]
[344625162,1733632233148,-523.83408153,0.00030136,5]
[344625164,1733632233157,-507.38705625,0.00030136,5]
[344625166,1733632233167,-515.21546733,0.00030136,5]
[344625168,1733632233176,-506.11384234,0.00030136,5]
[344625170,1733632233186,-504.4844507,0.00030136,5]
[344625172,1733632233195,-508.48278203,0.00030136,5]
[344625174,1733632233205,-505.29932873,0.00030136,5]
[344625176,1733632233214,-594.22712058,0.00030136,5]
[344625178,1733632233223,-501.87623488,0.00030136,5]
[344625180,1733632233232,-503.93832054,0.00030136,5]
[344625182,1733632233241,-505.62065315,0.00030136,5]
[344625184,1733632233252,-500.0,0.00030136,5]
[344625185,1733632233261,-500.0,0.00030136,5]
[344625187,1733632233271,-500.0,0.00030136,5]
[344625190,1733632233280,-507.02562087,0.00030136,5]
[344625192,1733632233289,-505.04604357,0.00030136,5]
[344625194,1733632233299,-500.0,0.00030136,5]
[344625196,1733632233308,-509.11696587,0.00030136,5]
[344625198,1733632233317,-557.71176774,0.00030136,5]
[344625200,1733632233327,-500.0,0.00030136,5]
[344625202,1733632233336,-273.94,0.00030136,5]
[344625204,1733632233345,-500.0,0.00030136,5]
[344625206,1733632233354,-183.98,0.00030136,5]
[344625208,1733632233364,-428.94343551,0.00030136,5]
[344625210,1733632233373,-500.0,0.00030136,5]
[344625212,1733632233382,-402.95283741,0.00030136,5]
[344625214,1733632233392,-504.23634406,0.00030136,5]
[344625216,1733632233401,-198.62610179,0.00030136,5]
[344625218,1733632233410,-509.78983229,0.00030136,5]
[344625220,1733632233419,-501.7803026,0.00030136,5]
[344625222,1733632233428,-576.33743346,0.00030136,5]
[344625224,1733632233437,-500.0,0.00030136,5]
[344625226,1733632233448,-504.16057727,0.00030136,5]
[344625228,1733632233457,-533.67614963,0.00030136,5]
[344625230,1733632233467,-337.36226261,0.00030136,5]
[344625232,1733632233476,-502.34336395,0.00030136,5]
[344625234,1733632233485,-505.90436026,0.00030136,5]
[344625236,1733632233495,-510.06527599,0.00030136,5]
[344625238,1733632233504,-162.95626017,0.00030137,2]
[344625240,1733632233514,-500.0,0.0003017,2]
[344625242,1733632233523,-470.03701311,0.0003017,2]
[344625244,1733632233532,-500.0,0.0003017,2]
[344625246,1733632233542,-204.78127646,0.0003017,2]
[344625248,1733632233552,-500.0,0.0003017,2]
[344625250,1733632233561,-398.16140339,0.0003017,2]
[344625252,1733632233571,-500.0,0.0003017,2]
[344625254,1733632233580,-500.0,0.0003017,2]
[344625256,1733632233590,-500.0,0.0003017,2]
[344625258,1733632233599,-500.0,0.0003017,2]
[344625260,1733632233609,-325.4985066,0.0003017,2]
[344625262,1733632233618,-505.99508227,0.00030172,5]
[344625264,1733632233628,-506.49890513,0.00030172,5]
[344625266,1733632233637,-4.56584644,0.00030172,5]
[344625268,1733632233650,-517.23702748,0.00030172,5]
[344625270,1733632233659,-505.78823788,0.00030172,5]
[344625271,1733632233668,-509.21215078,0.00030172,5]
[344625273,1733632233678,-504.03481944,0.00030172,5]
[344625275,1733632233687,-287.43468823,0.00030172,5]
[344625277,1733632233700,-503.62639058,0.00030172,5]
[344625279,1733632233710,-504.11564766,0.00030172,5]
[344625281,1733632233719,-504.41037449,0.00030172,5]
[344625283,1733632233728,-508.22942457,0.00030172,5]
[344625285,1733632233738,-508.52019965,0.00030172,5]
[344625287,1733632233748,-506.49556828,0.00030172,5]
[344625289,1733632233758,-504.0011566,0.00030172,5]
[344625291,1733632233768,-188.0164954,0.00030172,5]
[344625293,1733632233779,-500.0,0.00030172,5]
[344625295,1733632233788,-242.73300257,0.00030172,5]
[344625297,1733632233797,-500.0,0.00030213,5]
[344625299,1733632233807,-9498.17222769,0.00030231,2]
[344625301,1733632233817,-210.370754,0.00030382,2]
[344625303,1733632233826,-690.54015225,0.00030382,2]
[344625305,1733632233836,-666.0,0.00030398,2]
[344625306,1733632233846,-212.3342337,0.00030432,2]
[344625309,1733632233855,-587.0,0.00030449,2]
[344625310,1733632233866,-160.65876305,0.00030481,10]
[344625311,1733632233877,-202.28830344,0.00030481,2]
[344625312,1733632233888,-189.82389742,0.00030481,2]
[344625313,1733632233898,-635.8941371,0.00030481,2]
[344625314,1733632233908,-500.0,0.00030481,5]
[344625315,1733632233917,-500.0,0.00030481,5]
[344625316,1733632233927,-500.0,0.00030481,5]
[344625317,1733632233936,-500.0,0.00030481,5]
[344625318,1733632233945,-500.0,0.00030481,5]
[344625319,1733632233955,-500.0,0.00030481,5]
[344625320,1733632233964,-500.0,0.00030481,5]
[344625321,1733632233974,-500.0,0.00030481,5]
[344625322,1733632233984,-500.0,0.00030481,5]
[344625323,1733632233993,-500.0,0.00030481,5]
[344625324,1733632234002,-500.0,0.00030481,5]
[344625325,1733632234011,-500.0,0.00030481,5]
[344625326,1733632234020,-500.0,0.00030481,5]
[344625327,1733632234030,-500.0,0.00030481,5]
[344625328,1733632234039,-500.0,0.00030481,5]
[344625329,1733632234049,-500.0,0.00030481,5]
[344625330,1733632234058,-500.0,0.00030481,5]
[344625331,1733632234068,-500.0,0.00030481,5]
[344625332,1733632234078,-229.03265784,0.00030481,5]
[344625333,1733632234087,-8490.15384146,0.00030481,2]
[344625353,1733632238241,-505.34148476,0.00030136,5]
[344625354,1733632238251,-265.38229824,0.00030175,2]
[344625356,1733632238261,-42683.01266818,0.00030481,2]
[344625357,1733632238270,-54313.91809882,0.00030482,10]
[344625358,1733632238282,-635.69800004,0.00030482,10]
[344625359,1733632238309,-8621.96097907,0.00030482,10]
[344625360,1733632238320,-18871.38673,0.00030482,10]
[344625393,1733632246393,-265.38229824,0.00030244,2]
[344625394,1733632246404,-265.38229824,0.00030313,2]
[344625395,1733632246413,-807.33540352,0.00030482,10]
[344625396,1733632246424,-6399.88935,0.00030482,10]
[344625397,1733632271346,165.311393,0.00013973,2]
[344625417,1733632943372,165.311393,0.00013973,2]
[344625534,1733633432725,-399.715332,0.00023,5]
[344625787,1733633443713,-130.284668,0.00023,5]
[344625788,1733633443723,-500.0,0.00023,3]
[344625789,1733633443733,-500.0,0.00023,5]
[344625790,1733633443742,-576.37394027,0.00025,5]
[344625854,1733633837848,167.695873,0.00013973,2]
[344625924,1733634635451,-34.52605973,0.00025,5]
[344625925,1733634635462,-500.67487282,0.00026473,2]
[344625926,1733634635472,-500.0,0.00026473,2]
[344625927,1733634635483,-771.77896372,0.00026496,2]
[344625928,1733634635495,-500.0,0.00026499,2]
[344625929,1733634635505,-280.05520526,0.00026499,2]
[344625930,1733634635517,-300.0,0.00026499,2]
[344625931,1733634635528,-25586.58325482,0.000265,2]
[344625932,1733634635539,-152327.68647602,0.000265,24]
[344626302,1733634753342,168.888112,0.00013973,2]
[344626307,1733635423376,168.888112,0.00013973,2]
[344626325,1733635698329,532.54773246,0.000125,2]
[344626334,1733635718820,3578.60838407,0.00015,20]
[344626335,1733635719189,3013.94838143,0.0001999,2]
[344626382,1733635835141,-373.26950217,0.00025,2]
[344626383,1733635835154,-84.18602628,0.000265,24]
[344626441,1733635839841,-337.43574855,0.000265,24]
[344626510,1733635843158,-1250.69174915,0.000265,24]
[344626512,1733635843169,-157.124171,0.00026696,2]
[344626514,1733635843180,-1261.56212271,0.00027,2]
[344626516,1733635843191,-267.71113705,0.0002735,2]
[344626520,1733635843218,-32.28886295,0.0002735,2]
[344626522,1733635843228,-3828.58879518,0.00027351,2]